Workbook

Sheet Simple PE Formula
A2: Drivers | H2: If no net debt, ROIC and ROE are the same
B3: Rate of Return | E3: 0.05 | F3: ROE | H3: If no net debt, k and WACC are the same | M3: value = cf1/(k-g) | P3: =(1-G/ROE)/(K-G) -> 15.93963829 | R3: g = ROE * (1-dpo)
B4: Cost of Capital | E4: 0.08 | F4: K | M4: value = cf0 * (1+g)/(k-g) | R4: g/roe = 1- dpo
B5: Growth | E5: -0.06777008613 | F5: G | H5: Value Formula | M5: Compute P/E | P5: =E22 -> 18.03448014 | R5: dpo = 1- g/roe
B6: Payout | E6: =1-G/ROE -> 2.355401723 | F6: Payout | H6: Earnings Multiple (P/E or EV/NOPAT) | Q6: Value = E x (1-g/ROE)/(k-g)
B7: Investment Balance (Book Value) | E7: 27.24 | H7: Value to Investment (P/B or EV/Invested Capital) | N7: Value = Div1/(k-g) | P7: or | Q7: P/E = (1-g/ROE)/(k-g)
B9: P/E Ratio - Formula | E9: =P3 -> 15.93963829 | H9: Long-term Growth | J9: 0.035
B10: P/E Ratio - Formula | E10: =P5 -> 18.03448014 | H10: long-term Year
A12: Long-term Model
B13: Period | G13: 1 | H13: =G13+1 -> 2 | I13: =H13+1 -> 3 | J13: =I13+1 -> 4 | K13: 5 | L13: 6 | M13: 7 | N13: 8 | O13: 9 | P13: 10 | Q13: 11 | R13: 12 | S13: 13 | T13: 14 | U13: 15 | V13: 16 | W13: 17 | X13: 18 | Y13: 19 | Z13: 20 | AA13: 21 | AB13: 22 | AC13: 23 | AD13: 24 | AE13: 25 | AF13: 26 | AG13: 27 | AH13: 28 | AI13: 29 | AJ13: 30 | AK13: 31 | AL13: 32 | AM13: 33 | AN13: 34 | AO13: 35 | AP13: 36 | AQ13: 37 | AR13: 38 | AS13: 39 | AT13: 40 | AU13: 41 | AV13: 42 | AW13: 43 | AX13: 44 | AY13: 45 | AZ13: 46 | BA13: 47 | BB13: 48 | BC13: 49 | BD13: 50 | BE13: 51 | BF13: 52 | BG13: 53 | BH13: 54 | BI13: 55 | BJ13: 56 | BK13: 57 | BL13: 58 | BM13: 59 | BN13: 60 | BO13: 61 | BP13: 62 | BQ13: 63 | BR13: 64 | BS13: 65 | BT13: 66 | BU13: 67 | BV13: =BU13+1 -> 68 | BW13: 69 | BX13: 70 | BY13: 71 | BZ13: 72 | CA13: 73 | CB13: 74 | CC13: 75 | CD13: 76 | CE13: 77 | CF13: 78 | CG13: 79 | CH13: 80 | CI13: 81 | CJ13: 82 | CK13: 83 | CL13: 84 | CM13: 85 | CN13: 86 | CO13: 87 | CP13: 88 | CQ13: 89 | CR13: 90 | CS13: 91 | CT13: 92 | CU13: 93 | CV13: 94 | CW13: 95 | CX13: 96 | CY13: 97 | CZ13: 98 | DA13: 99 | DB13: 100 | DC13: 101 | DD13: 102 | DE13: 103 | DF13: 104 | DG13: 105 | DH13: 106 | DI13: 107 | DJ13: 108 | DK13: 109 | DL13: 110 | DM13: 111 | DN13: 112 | DO13: 113 | DP13: 114 | DQ13: 115 | DR13: 116 | DS13: 117 | DT13: 118 | DU13: 119 | DV13: 120 | DW13: 121 | DX13: 122 | DY13: 123 | DZ13: 124 | EA13: 125 | EB13: 126 | EC13: 127 | ED13: 128 | EE13: 129 | EF13: 130 | EG13: 131 | EH13: =EG13+1 -> 132 | EI13: 133 | EJ13: 134 | EK13: 135 | EL13: 136 | EM13: 137 | EN13: 138 | EO13: 139 | EP13: 140 | EQ13: 141 | ER13: 142 | ES13: 143 | ET13: 144 | EU13: 145 | EV13: 146 | EW13: 147 | EX13: 148 | EY13: 149 | EZ13: 150 | FA13: 151 | FB13: 152 | FC13: 153 | FD13: 154 | FE13: 155 | FF13: 156 | FG13: 157 | FH13: 158 | FI13: 159 | FJ13: 160 | FK13: 161 | FL13: 162 | FM13: 163 | FN13: 164 | FO13: 165 | FP13: 166 | FQ13: 167 | FR13: 168 | FS13: 169 | FT13: 170 | FU13: 171 | FV13: 172 | FW13: 173 | FX13: 174 | FY13: 175 | FZ13: 176 | GA13: 177 | GB13: 178 | GC13: 179 | GD13: 180 | GE13: 181 | GF13: 182 | GG13: 183 | GH13: 184 | GI13: 185 | GJ13: 186 | GK13: 187 | GL13: 188 | GM13: 189 | GN13: 190 | GO13: 191 | GP13: 192 | GQ13: 193 | GR13: 194 | GS13: 195 | GT13: =GS13+1 -> 196 | GU13: 197 | GV13: 198 | GW13: 199 | GX13: 200 | GY13: 201 | GZ13: 202 | HA13: 203 | HB13: 204 | HC13: 205 | HD13: 206 | HE13: 207 | HF13: 208 | HG13: 209 | HH13: 210 | HI13: 211 | HJ13: 212 | HK13: 213 | HL13: 214 | HM13: 215 | HN13: 216 | HO13: 217 | HP13: 218 | HQ13: 219 | HR13: 220 | HS13: 221 | HT13: 222 | HU13: 223 | HV13: 224 | HW13: 225 | HX13: 226 | HY13: 227 | HZ13: 228 | IA13: 229 | IB13: 230 | IC13: 231 | ID13: 232 | IE13: 233 | IF13: 234 | IG13: 235 | IH13: 236 | II13: 237 | IJ13: 238 | IK13: 239 | IL13: 240 | IM13: 241 | IN13: 242 | IO13: 243 | IP13: 244 | IQ13: 245 | IR13: 246 | IS13: 247 | IT13: 248 | IU13: 249 | IV13: 250 | IW13: 251 | IX13: 252 | IY13: 253 | IZ13: 254 | JA13: 255 | JB13: 256 | JC13: 257 | JD13: 258 | JE13: 259 | JF13: =JE13+1 -> 260 | JG13: 261 | JH13: 262 | JI13: 263 | JJ13: 264 | JK13: 265 | JL13: 266 | JM13: 267 | JN13: 268 | JO13: 269 | JP13: 270 | JQ13: 271 | JR13: 272 | JS13: 273 | JT13: 274 | JU13: 275 | JV13: 276 | JW13: 277 | JX13: 278 | JY13: 279 | JZ13: 280 | KA13: 281 | KB13: 282 | KC13: 283 | KD13: 284 | KE13: 285 | KF13: 286 | KG13: 287 | KH13: 288 | KI13: 289 | KJ13: 290 | KK13: 291 | KL13: 292 | KM13: 293 | KN13: 294 | KO13: 295 | KP13: 296 | KQ13: 297 | KR13: 298 | KS13: 299 | KT13: 300 | KU13: 301 | KV13: 302 | KW13: 303 | KX13: 304 | KY13: 305 | KZ13: 306 | LA13: 307 | LB13: 308 | LC13: 309 | LD13: 310 | LE13: 311 | LF13: 312 | LG13: 313
B15: Investment Balance
C16: Opening Balance | G16: =F19 -> 27.24 | H16: =G19 -> 25.39394285 | I16: 23.67299316 | J16: 22.06867237 | K16: 20.57307655 | L16: 19.17883738 | M16: 17.87908592 | N16: 16.66741872 | O16: 15.53786632 | P16: 14.48486378 | Q16: 13.50322332 | R16: 12.58810871 | S16: 11.7350115 | T16: 10.93972876 | U16: 10.1983424 | V16: 9.507199856
C17: Add: Income | E17: =ROE -> 0.05 | G17: =G16*ROE -> 1.362 | H17: 1.269697143 | I17: 1.183649658 | J17: 1.103433619 | K17: 1.028653827 | L17: 0.9589418689 | M17: 0.8939542958 | N17: 0.8333709362 | O17: 0.7768933161 | P17: 0.7242431891 | Q17: 0.6751611658 | R17: 0.6294054355 | S17: 0.5867505749 | T17: 0.5469864379 | U17: 0.5099171199 | V17: 0.4753599928
C18: Less: Payouts | E18: =E6 -> 2.355401723 | G18: =G17*Payout -> 3.208057146 | H18: 2.990646837 | I18: 2.787970443 | J18: 2.599029446 | K18: 2.422892997 | L18: 2.25869333 | M18: 2.105621488 | N18: 1.962923339 | O18: 1.829895855 | P18: 1.705883655 | Q18: 1.590275773 | R18: 1.482502647 | S18: 1.382033315 | T18: 1.288372798 | U18: 1.201059663 | V18: =V16*ROE*((1+J9/ROE)/(K-J9)) -> 17.95804417
C19: Closing Balance | F19: =E7 -> 27.24 | G19: =G16+G17-G18 -> 25.39394285 | H19: =H16+H17-H18 -> 23.67299316 | I19: 22.06867237 | J19: 20.57307655 | K19: 19.17883738 | L19: 17.87908592 | M19: 16.66741872 | N19: 15.53786632 | O19: 14.48486378 | P19: 13.50322332 | Q19: 12.58810871 | R19: 11.7350115 | S19: 10.93972876 | T19: 10.1983424 | U19: 9.507199856 | V19: -7.975484323
C21: Value - NPV of Payouts | E21: =NPV(K,G18:LG18) -> 24.56296194
C22: Forward Earnings Multiple | E22: =MIN(MAX(E21/G17,-50),300) -> 18.03448014
C23: Value to Investment | E23: =E21/F19 -> 0.9017240068 | G23: =(ROE-G)/(K-G) -> 0.7969819144
C24: Cash Flow | F24: =-E21 -> -24.56296194 | G24: =G18 -> 3.208057146 | H24: =H18 -> 2.990646837 | I24: 2.787970443 | J24: 2.599029446 | K24: 2.422892997 | L24: 2.25869333 | M24: 2.105621488 | N24: 1.962923339 | O24: 1.829895855 | P24: 1.705883655 | Q24: 1.590275773 | R24: 1.482502647 | S24: 1.382033315 | T24: 1.288372798 | U24: 1.201059663 | V24: 17.95804417 | W24: 0 | X24: 0 | Y24: 0 | Z24: 0 | AA24: 0 | AB24: 0 | AC24: 0 | AD24: 0 | AE24: 0 | AF24: 0 | AG24: 0 | AH24: 0 | AI24: 0 | AJ24: 0 | AK24: 0 | AL24: 0 | AM24: 0 | AN24: 0 | AO24: 0 | AP24: 0 | AQ24: 0 | AR24: 0 | AS24: 0 | AT24: 0 | AU24: 0 | AV24: 0 | AW24: 0 | AX24: 0 | AY24: 0 | AZ24: 0 | BA24: 0 | BB24: 0 | BC24: 0 | BD24: 0 | BE24: 0 | BF24: 0 | BG24: 0 | BH24: 0 | BI24: 0 | BJ24: 0 | BK24: 0 | BL24: 0 | BM24: 0 | BN24: 0 | BO24: 0 | BP24: 0 | BQ24: 0 | BR24: 0 | BS24: 0 | BT24: =BT18 -> 0 | BU24: 0 | BV24: 0 | BW24: 0 | BX24: 0 | BY24: 0 | BZ24: 0 | CA24: 0 | CB24: 0 | CC24: 0 | CD24: 0 | CE24: 0 | CF24: 0 | CG24: 0 | CH24: 0 | CI24: 0 | CJ24: 0 | CK24: 0 | CL24: 0 | CM24: 0 | CN24: 0 | CO24: 0 | CP24: 0 | CQ24: 0 | CR24: 0 | CS24: 0 | CT24: 0 | CU24: 0 | CV24: 0 | CW24: 0 | CX24: 0 | CY24: 0 | CZ24: 0 | DA24: 0 | DB24: 0 | DC24: 0 | DD24: 0 | DE24: 0 | DF24: 0 | DG24: 0 | DH24: 0 | DI24: 0 | DJ24: 0 | DK24: 0 | DL24: 0 | DM24: 0 | DN24: 0 | DO24: 0 | DP24: 0 | DQ24: 0 | DR24: 0 | DS24: 0 | DT24: 0 | DU24: 0 | DV24: 0 | DW24: 0 | DX24: 0 | DY24: 0 | DZ24: 0 | EA24: 0 | EB24: 0 | EC24: 0 | ED24: 0 | EE24: 0 | EF24: =EF18 -> 0 | EG24: 0 | EH24: 0 | EI24: 0 | EJ24: 0 | EK24: 0 | EL24: 0 | EM24: 0 | EN24: 0 | EO24: 0 | EP24: 0 | EQ24: 0 | ER24: 0 | ES24: 0 | ET24: 0 | EU24: 0 | EV24: 0 | EW24: 0 | EX24: 0 | EY24: 0 | EZ24: 0 | FA24: 0 | FB24: 0 | FC24: 0 | FD24: 0 | FE24: 0 | FF24: 0 | FG24: 0 | FH24: 0 | FI24: 0 | FJ24: 0 | FK24: 0 | FL24: 0 | FM24: 0 | FN24: 0 | FO24: 0 | FP24: 0 | FQ24: 0 | FR24: 0 | FS24: 0 | FT24: 0 | FU24: 0 | FV24: 0 | FW24: 0 | FX24: 0 | FY24: 0 | FZ24: 0 | GA24: 0 | GB24: 0 | GC24: 0 | GD24: 0 | GE24: 0 | GF24: 0 | GG24: 0 | GH24: 0 | GI24: 0 | GJ24: 0 | GK24: 0 | GL24: 0 | GM24: 0 | GN24: 0 | GO24: 0 | GP24: 0 | GQ24: 0 | GR24: =GR18 -> 0 | GS24: 0 | GT24: 0 | GU24: 0 | GV24: 0 | GW24: 0 | GX24: 0 | GY24: 0 | GZ24: 0 | HA24: 0 | HB24: 0 | HC24: 0 | HD24: 0 | HE24: 0 | HF24: 0 | HG24: 0 | HH24: 0 | HI24: 0 | HJ24: 0 | HK24: 0 | HL24: 0 | HM24: 0 | HN24: 0 | HO24: 0 | HP24: 0 | HQ24: 0 | HR24: 0 | HS24: 0 | HT24: 0 | HU24: 0 | HV24: 0 | HW24: 0 | HX24: 0 | HY24: 0 | HZ24: 0 | IA24: 0 | IB24: 0 | IC24: 0 | ID24: 0 | IE24: 0 | IF24: 0 | IG24: 0 | IH24: 0 | II24: 0 | IJ24: 0 | IK24: 0 | IL24: 0 | IM24: 0 | IN24: 0 | IO24: 0 | IP24: 0 | IQ24: 0 | IR24: 0 | IS24: 0 | IT24: 0 | IU24: 0 | IV24: 0 | IW24: 0 | IX24: 0 | IY24: 0 | IZ24: 0 | JA24: 0 | JB24: 0 | JC24: 0 | JD24: =JD18 -> 0 | JE24: 0 | JF24: 0 | JG24: 0 | JH24: 0 | JI24: 0 | JJ24: 0 | JK24: 0 | JL24: 0 | JM24: 0 | JN24: 0 | JO24: 0 | JP24: 0 | JQ24: 0 | JR24: 0 | JS24: 0 | JT24: 0 | JU24: 0 | JV24: 0 | JW24: 0 | JX24: 0 | JY24: 0 | JZ24: 0 | KA24: 0 | KB24: 0 | KC24: 0 | KD24: 0 | KE24: 0 | KF24: 0 | KG24: 0 | KH24: 0 | KI24: 0 | KJ24: 0 | KK24: 0 | KL24: 0 | KM24: 0 | KN24: 0 | KO24: 0 | KP24: 0 | KQ24: 0 | KR24: 0 | KS24: 0 | KT24: 0 | KU24: 0 | KV24: 0 | KW24: 0 | KX24: 0 | KY24: 0 | KZ24: 0 | LA24: 0 | LB24: 0 | LC24: 0 | LD24: 0 | LE24: 0 | LF24: 0 | LG24: 0
C25: IRR Check | E25: =IRR(24:24) -> 0.08
A27: Goal Seek to Compute Cost of Capital
B28: Input Valuation Ratio | E28: 25
B29: Computed Valuation Ratio | E29: =E22 -> 18.03448014
B30: Difference | E30: =E28-E29 -> 6.965519864 | F30: difference
A32: Data Table Sensitivity
I34: ROE
I36: 0.1 | J36: 0.12 | K36: 0.14 | L36: 0.16 | M36: 0.18
H37: 0 | I37: 14.28571428 | J37: 14.28571428 | K37: 14.28571428 | L37: 14.28571428 | M37: 14.28571428
H38: 0.01 | I38: 15.55555533 | J38: 15.55555533 | K38: 15.55555533 | L38: 15.55555533 | M38: 15.55555533
G39: g | H39: 0.02 | I39: 17.33332792 | J39: 17.33332792 | K39: 17.33332792 | L39: 17.33332792 | M39: 17.33332792
H40: 0.03 | I40: 19.99986758 | J40: 19.99986758 | K40: 19.99986758 | L40: 19.99986758 | M40: 19.99986758
H41: 0.04 | I41: 24.44111407 | J41: 24.44111407 | K41: 24.44111407 | L41: 24.44111407 | M41: 24.44111407
H42: 0.05 | I42: 33.24254983 | J42: 33.24254983 | K42: 33.24254983 | L42: 33.24254983 | M42: 33.24254983
F45: Start Row | G45: =ROW(H37) -> 37
F46: End Row | G46: =ROW(H42) -> 42 | R46: =MAX(R53:R556) -> 406.0347044
F47: Start Col | G47: =COLUMN(I36) -> 9
F48: End Col | G48: =COLUMN(M36) -> 13
N49: ROE Volatility | Q49: Growth Volatliaty
N50: 0.5 | Q50: 0.5
J51: ROE-K | P51: ROE-K
H52: ROE | I52: K | K52: G | L52: PE | N52: ROE | O52: K | Q52: G | R52: Value
E53: Row Start | F53: =ROW(H53) -> 53 | H53: 0.25 | I53: 0.08 | J53: =H53-I53 -> 0.17 | K53: 0.03 | L53: 17.59999366 | N53: =H53+H53*NORMSINV(RAND())*$N$50 -> 0.2746957934 | O53: =I53 -> 0.08 | P53: =N53-O53 -> 0.1946957934 | Q53: =K53+K53*NORMSINV(RAND())*$Q$50 -> 0.02975960368 | R53: 229.1409489
E54: Row End | F54: =ROW(H556) -> 556 | H54: 0.23 | I54: 0.08 | J54: =H54-I54 -> 0.15 | K54: 0.03 | L54: 17.4999937 | N54: 0.2265914167 | O54: =I54 -> 0.08 | P54: =N54-O54 -> 0.1465914167 | Q54: 0.042110293 | R54: 140.8175046
E55: Col Start | F55: =COLUMN(N53) -> 14 | H55: 0.21 | I55: 0.08 | J55: 0.13 | K55: 0.03 | L55: 17.39129809 | N55: 0.1527254512 | O55: 0.08 | P55: 0.07272545119 | Q55: 0.03128857696 | R55: 86.58013284
E56: Col End | F56: =COLUMN(R53) -> 18 | H56: 0.19 | I56: 0.08 | J56: 0.11 | K56: 0.03 | L56: 17.27272105 | N56: 0.1940793213 | O56: 0.08 | P56: 0.1140793213 | Q56: 0.02129956734 | R56: 101.0311416
H57: 0.17 | I57: 0.08 | J57: 0.09 | K57: 0.03 | L57: 17.14285097 | N57: 0.1495559467 | O57: 0.08 | P57: 0.06955594669 | Q57: 0.01171170487 | R57: 73.17639022
H58: 0.15 | I58: 0.08 | J58: 0.07 | K58: 0.03 | L58: 16.99999388 | N58: 0.1342858934 | O58: 0.08 | P58: 0.05428589343 | Q58: 0.0196005407 | R58: 69.92756035
H59: 0.13 | I59: 0.08 | J59: 0.05 | K59: 0.03 | L59: 16.8420992 | N59: 0.07117567987 | O59: 0.08 | P59: -0.008824320132 | Q59: 0.03216365552 | R59: 41.11809575
H60: 0.11 | I60: 0.08 | J60: 0.03 | K60: 0.03 | L60: 16.66666067 | N60: -0.004197867502 | O60: 0.08 | P60: -0.0841978675 | Q60: 0.02731910287 | R60: -0.4455394236
H61: 0.09 | I61: 0.08 | J61: 0.01 | K61: 0.03 | L61: 16.4705823 | N61: 0.1508856054 | O61: 0.08 | P61: 0.07088560538 | Q61: 0.02598584244 | R61: 82.07178151
H62: 0.07 | I62: 0.08 | J62: -0.01 | K62: 0.03 | L62: 16.24999415 | N62: 0.06073183947 | O62: 0.08 | P62: -0.01926816053 | Q62: 0.01715390488 | R62: 33.03436123
H63: 0.05 | I63: 0.08 | J63: -0.03 | K63: 0.03 | L63: 15.99999424 | N63: 0.08265881793 | O63: 0.08 | P63: 0.002658817932 | Q63: 0.06593198168 | R63: 59.95543829
H64: 0.03 | I64: 0.08 | J64: -0.05 | K64: 0.03 | L64: 15.71428006 | N64: 0.0172016024 | O64: 0.08 | P64: -0.0627983976 | Q64: 0.02644501009 | R64: 11.13460846
H65: 0.01 | I65: 0.08 | J65: -0.07 | K65: 0.03 | L65: 15.38460984 | N65: 0.01820234474 | O65: 0.08 | P65: -0.06179765526 | Q65: 0.04445148026 | R65: 10.11055434
H66: -0.01 | I66: 0.08 | J66: -0.09 | K66: 0.03 | L66: 14.9999946 | N66: -0.006787092253 | O66: 0.08 | P66: -0.08678709225 | Q66: 0.01780479314 | R66: 0.1494903734
H67: -0.03 | I67: 0.08 | J67: -0.11 | K67: 0.03 | L67: 14.54544931 | N67: -0.02458195298 | O67: 0.08 | P67: -0.104581953 | Q67: 0.05408707652 | R67: -21.19203347
H68: -0.05 | I68: 0.08 | J68: -0.13 | K68: 0.03 | L68: 13.99999496 | N68: -0.04105469817 | O68: 0.08 | P68: -0.1210546982 | Q68: -0.005047106038 | R68: -9.154654414
H69: -0.07 | I69: 0.08 | J69: -0.15 | K69: 0.03 | L69: 13.33332853 | N69: -0.09869434133 | O69: 0.08 | P69: -0.1786943413 | Q69: 0.04309707872 | R69: -63.72508657
H70: -0.09 | I70: 0.08 | J70: -0.17 | K70: 0.03 | L70: 12.4999955 | N70: -0.1025390923 | O70: 0.08 | P70: -0.1825390923 | Q70: 0.02853625066 | R70: -54.22319949
H71: -0.11 | I71: 0.08 | J71: -0.19 | K71: 0.03 | L71: 11.42856731 | N71: -0.1758722008 | O71: 0.08 | P71: -0.2558722008 | Q71: 0.03855439801 | R71: -106.4735189
H72: -0.13 | I72: 0.08 | J72: -0.21 | K72: 0.03 | L72: 9.999996399 | N72: -0.1131674973 | O72: 0.08 | P72: -0.1931674973 | Q72: 0.03791994728 | R72: -68.05831832
H73: -0.15 | I73: 0.08 | J73: -0.23 | K73: 0.03 | L73: 7.999997119 | N73: -0.160842777 | O73: 0.08 | P73: -0.240842777 | Q73: 0.02000657616 | R73: -77.20082524
H74: -0.17 | I74: 0.08 | J74: -0.25 | K74: 0.03 | L74: 4.9999982 | N74: -0.2609863278 | O74: 0.08 | P74: -0.3409863278 | Q74: 0.03295354066 | R74: -147.8754733
H75: -0.19 | I75: 0.08 | J75: -0.27 | K75: 0.03 | L75: 0 | N75: -0.08811834624 | O75: 0.08 | P75: -0.1681183462 | Q75: 0.04558062316 | R75: -59.03329554
H76: -0.21 | I76: 0.08 | J76: -0.29 | K76: 0.03 | L76: -9.999996399 | N76: -0.2262250122 | O76: 0.08 | P76: -0.3062250122 | Q76: 0.03585327934 | R76: -132.5530525
H77: 0.25 | I77: 0.08 | J77: 0.17 | K77: 0.03 | L77: 29.32966324 | N77: 0.1675737817 | O77: 0.08 | P77: 0.08757378167 | Q77: 0.02188282231 | R77: 88.0255377
H78: 0.23 | I78: 0.08 | J78: 0.15 | K78: 0.03 | L78: 29.16301743 | N78: 0.5712370634 | O78: 0.08 | P78: 0.4912370634 | Q78: 0.04175078538 | R78: 355.3716537
H79: 0.21 | I79: 0.08 | J79: 0.13 | K79: 0.03 | L79: 28.98188067 | N79: 0.1967469996 | O79: 0.08 | P79: 0.1167469996 | Q79: 0.02429920319 | R79: 104.922256
H80: 0.19 | I80: 0.08 | J80: 0.11 | K80: 0.03 | L80: 28.78427694 | N80: 0.2984589942 | O80: 0.08 | P80: 0.2184589942 | Q80: 0.04078390168 | R80: 183.5303994
H81: 0.17 | I81: 0.08 | J81: 0.09 | K81: 0.03 | L81: 28.56785381 | N81: 0.1761788806 | O81: 0.08 | P81: 0.09617888056 | Q81: 0.02965684894 | R81: 98.380652
H82: 0.15 | I82: 0.08 | J82: 0.07 | K82: 0.03 | L82: 28.32978836 | N82: 0.2162260901 | O82: 0.08 | P82: 0.1362260901 | Q82: 0.04717739247 | R82: 140.620018
H83: 0.13 | I83: 0.08 | J83: 0.05 | K83: 0.03 | L83: 28.06666339 | N83: 0.09440721311 | O83: 0.08 | P83: 0.01440721311 | Q83: 0.04297846802 | R83: 58.39928854
H84: 0.11 | I84: 0.08 | J84: 0.03 | K84: 0.03 | L84: 27.77430231 | N84: 0.04119613373 | O84: 0.08 | P84: -0.03880386627 | Q84: 0.02429653579 | R84: 23.82864506
H85: 0.09 | I85: 0.08 | J85: 0.01 | K85: 0.03 | L85: 27.44754581 | N85: 0.09663699524 | O85: 0.08 | P85: 0.01663699524 | Q85: 0.01855113278 | R85: 50.88190997
H86: 0.07 | I86: 0.08 | J86: -0.01 | K86: 0.03 | L86: 27.07994475 | N86: 0.08045012181 | O86: 0.08 | P86: 0.0004501218076 | Q86: 0.030605795 | R86: 45.93068406
H87: 0.05 | I87: 0.08 | J87: -0.03 | K87: 0.03 | L87: 26.66333022 | N87: 0.06047611787 | O87: 0.08 | P87: -0.01952388213 | Q87: 0.02206755846 | R87: 33.56591079
H88: 0.03 | I88: 0.08 | J88: -0.05 | K88: 0.03 | L88: 26.18719932 | N88: 0.01757711943 | O88: 0.08 | P88: -0.06242288057 | Q88: 0.03844853879 | R88: 10.27347849
H89: 0.01 | I89: 0.08 | J89: -0.07 | K89: 0.03 | L89: 25.63781752 | N89: 0.007869824877 | O89: 0.08 | P89: -0.07213017512 | Q89: 0.03880303553 | R89: 4.367779959
H90: -0.01 | I90: 0.08 | J90: -0.09 | K90: 0.03 | L90: 24.99687208 | N90: -0.01621292801 | O90: 0.08 | P90: -0.09621292801 | Q90: 0.01757246136 | R90: -4.396267709
H91: -0.03 | I91: 0.08 | J91: -0.11 | K91: 0.03 | L91: 24.23939111 | N91: -0.02577314848 | O91: 0.08 | P91: -0.1057731485 | Q91: 0.02318600465 | R91: -10.73832927
H92: -0.05 | I92: 0.08 | J92: -0.13 | K92: 0.03 | L92: 23.33041394 | N92: -0.0938599678 | O92: 0.08 | P92: -0.1738599678 | Q92: 0.02222945141 | R92: -45.2042901
H93: -0.07 | I93: 0.08 | J93: -0.15 | K93: 0.03 | L93: 22.21944185 | N93: -0.07610609021 | O93: 0.08 | P93: -0.1561060902 | Q93: 0.02313009914 | R93: -36.65234696
H94: -0.09 | I94: 0.08 | J94: -0.17 | K94: 0.03 | L94: 20.83072673 | N94: -0.05294498137 | O94: 0.08 | P94: -0.1329449814 | Q94: 0.05203406156 | R94: -40.0522623
H95: -0.11 | I95: 0.08 | J95: -0.19 | K95: 0.03 | L95: 19.04523587 | N95: -0.1718170401 | O95: 0.08 | P95: -0.2518170401 | Q95: 0.04826905772 | R95: -117.169288
H96: -0.13 | I96: 0.08 | J96: -0.21 | K96: 0.03 | L96: 16.66458139 | N96: -0.1413819853 | O96: 0.08 | P96: -0.2213819853 | Q96: 0.02301633429 | R96: -70.17855651
H97: -0.15 | I97: 0.08 | J97: -0.23 | K97: 0.03 | L97: 13.33166511 | N97: -0.127149742 | O97: 0.08 | P97: -0.207149742 | Q97: 0.02261300153 | R97: -62.51813204
H98: -0.17 | I98: 0.08 | J98: -0.25 | K98: 0.03 | L98: 8.332290694 | N98: -0.2115395131 | O98: 0.08 | P98: -0.2915395131 | Q98: 0.05499677223 | R98: -155.6631943
H99: -0.19 | I99: 0.08 | J99: -0.27 | K99: 0.03 | L99: 0 | N99: -0.3152338899 | O99: 0.08 | P99: -0.3952338899 | Q99: 0.04098348246 | R99: -195.9349788
H100: -0.21 | I100: 0.08 | J100: -0.29 | K100: 0.03 | L100: -16.66458139 | N100: -0.3136502316 | O100: 0.08 | P100: -0.3936502316 | Q100: 0.03013005797 | R100: -172.2314982
H101: 0.25 | I101: 0.08 | J101: 0.17 | K101: 0.03 | L101: 43.89303212 | N101: 0.2295227292 | O101: 0.08 | P101: 0.1495227292 | Q101: 0.02676795099 | R101: 124.60755
H102: 0.23 | I102: 0.08 | J102: 0.15 | K102: 0.03 | L102: 43.64363989 | N102: 0.2978654215 | O102: 0.08 | P102: 0.2178654215 | Q102: 0.05737487137 | R102: 214.5872549
H103: 0.21 | I103: 0.08 | J103: 0.13 | K103: 0.03 | L103: 43.37256138 | N103: 0.1457104602 | O103: 0.08 | P103: 0.06571046022 | Q103: 0.01332172808 | R103: 72.23220343
H104: 0.19 | I104: 0.08 | J104: 0.11 | K104: 0.03 | L104: 43.07683937 | N104: 0.2222078298 | O104: 0.08 | P104: 0.1422078298 | Q104: 0.03256037697 | R104: 126.8744318
H105: 0.17 | I105: 0.08 | J105: 0.09 | K105: 0.03 | L105: 42.75295336 | N105: 0.2313724655 | O105: 0.08 | P105: 0.1513724655 | Q105: 0.03110547126 | R105: 130.4023417
H106: 0.15 | I106: 0.08 | J106: 0.07 | K106: 0.03 | L106: 42.39667875 | N106: 0.1491057534 | O106: 0.08 | P106: 0.0691057534 | Q106: 0.04834481085 | R106: 97.25685675
H107: 0.13 | I107: 0.08 | J107: 0.05 | K107: 0.03 | L107: 42.00290155 | N107: 0.03573954125 | O107: 0.08 | P107: -0.04426045875 | Q107: 0.03616306098 | R107: 21.17419486
H108: 0.11 | I108: 0.08 | J108: 0.03 | K108: 0.03 | L108: 41.56537132 | N108: 0.1438774451 | O108: 0.08 | P108: 0.06387744512 | Q108: -0.003272867744 | R108: 63.77870616
H109: 0.09 | I109: 0.08 | J109: 0.01 | K109: 0.03 | L109: 41.07636695 | N109: 0.05707940708 | O109: 0.08 | P109: -0.02292059292 | Q109: 0.01719288804 | R109: 31.26681614
H110: 0.07 | I110: 0.08 | J110: -0.01 | K110: 0.03 | L110: 40.52623704 | N110: 0.0193876574 | O110: 0.08 | P110: -0.0606123426 | Q110: 0.03822391882 | R110: 11.38297445
H111: 0.05 | I111: 0.08 | J111: -0.03 | K111: 0.03 | L111: 39.90275647 | N111: 0.01103784227 | O111: 0.08 | P111: -0.06896215773 | Q111: 0.03655308783 | R111: 6.581742953
H112: 0.03 | I112: 0.08 | J112: -0.05 | K112: 0.03 | L112: 39.19020725 | N112: 0.03225710448 | O112: 0.08 | P112: -0.04774289552 | Q112: 0.03989575978 | R112: 19.12256294
H113: 0.01 | I113: 0.08 | J113: -0.07 | K113: 0.03 | L113: 38.36803507 | N113: 0.006664302016 | O113: 0.08 | P113: -0.07333569798 | Q113: 0.00611701943 | R113: 8.198964554
H114: -0.01 | I114: 0.08 | J114: -0.09 | K114: 0.03 | L114: 37.40883419 | N114: -0.01316689636 | O114: 0.08 | P114: -0.09316689636 | Q114: 0.03520278995 | R114: -7.350753517
H115: -0.03 | I115: 0.08 | J115: -0.11 | K115: 0.03 | L115: 36.27523315 | N115: -0.03191227953 | O115: 0.08 | P115: -0.1119122795 | Q115: 0.05042689558 | R115: -24.6931014
H116: -0.05 | I116: 0.08 | J116: -0.13 | K116: 0.03 | L116: 34.91491191 | N116: -0.06899730638 | O116: 0.08 | P116: -0.1489973064 | Q116: 0.03937535547 | R116: -42.50295425
H117: -0.07 | I117: 0.08 | J117: -0.15 | K117: 0.03 | L117: 33.25229706 | N117: -0.03878434339 | O117: 0.08 | P117: -0.1187843434 | Q117: 0.02380788561 | R117: -17.68061922
H118: -0.09 | I118: 0.08 | J118: =H118-I118 -> -0.17 | K118: 0.03 | L118: 31.17402849 | N118: -0.110393066 | O118: =I118 -> 0.08 | P118: =N118-O118 -> -0.190393066 | Q118: 0.03019534221 | R118: -59.83370404
H119: -0.11 | I119: 0.08 | J119: -0.19 | K119: 0.03 | L119: 28.50196891 | N119: -0.1113534777 | O119: 0.08 | P119: -0.1913534777 | Q119: 0.01338212294 | R119: -47.84555641
H120: -0.13 | I120: 0.08 | J120: -0.21 | K120: 0.03 | L120: 24.93922279 | N120: -0.1824400057 | O120: 0.08 | P120: -0.2624400057 | Q120: -0.003640222936 | R120: -65.51631923
H121: -0.15 | I121: 0.08 | J121: -0.23 | K121: 0.03 | L121: 19.95137824 | N121: -0.2086488661 | O121: 0.08 | P121: -0.2886488661 | Q121: 0.04409332947 | R121: -134.8861905
H122: -0.17 | I122: 0.08 | J122: -0.25 | K122: 0.03 | L122: 12.4696114 | N122: -0.1005997821 | O122: 0.08 | P122: -0.1805997821 | Q122: 0.01319087667 | R122: -42.70149206
H123: -0.19 | I123: 0.08 | J123: -0.27 | K123: 0.03 | L123: 0 | N123: -0.1269292417 | O123: 0.08 | P123: -0.2069292417 | Q123: 0.026322374 | R123: -65.55449609
H124: -0.21 | I124: 0.08 | J124: -0.29 | K124: 0.03 | L124: -24.93922279 | N124: -0.2034090766 | O124: 0.08 | P124: -0.2834090766 | Q124: 0.007436055769 | R124: -84.51963008
H125: 0.25 | I125: 0.08 | J125: =H125-I125 -> 0.17 | K125: 0.04 | L125: 20.9998444 | N125: 0.3352811803 | O125: 0.08 | P125: 0.2552811803 | Q125: 0.02997937982 | R125: 186.5281005
H126: 0.23 | I126: 0.08 | J126: =H126-I126 -> 0.15 | K126: 0.04 | L126: 20.83317896 | N126: 0.08380921845 | O126: 0.08 | P126: 0.003809218452 | Q126: 0.003080666425 | R126: 41.13476712
H127: 0.21 | I127: 0.08 | J127: 0.13 | K127: 0.04 | L127: 20.65202089 | N127: 0.2593058563 | O127: 0.08 | P127: 0.1793058563 | Q127: 0.03729984155 | R127: 154.3648831
H128: 0.19 | I128: 0.08 | J128: 0.11 | K128: 0.04 | L128: 20.45439389 | N128: 0.07251491541 | O128: 0.08 | P128: -0.007485084595 | Q128: 0.07019537348 | R128: 53.38076908
H129: 0.17 | I129: 0.08 | J129: 0.09 | K129: 0.04 | L129: 20.23794528 | N129: 0.08801423905 | O129: 0.08 | P129: 0.008014239049 | Q129: 0.01571071296 | R129: 45.89521625
H130: 0.15 | I130: 0.08 | J130: 0.07 | K130: 0.04 | L130: 19.99985181 | N130: 0.1566531814 | O130: 0.08 | P130: 0.07665318142 | Q130: 0.07595245498 | R130: 131.28123
H131: 0.13 | I131: 0.08 | J131: 0.05 | K131: 0.04 | L131: 19.73669586 | N131: 0.1046345773 | O131: 0.08 | P131: 0.02463457727 | Q131: 0.07032244858 | R131: 80.57761633
H132: 0.11 | I132: 0.08 | J132: 0.03 | K132: 0.04 | L132: 19.44430037 | N132: 0.1424681194 | O132: 0.08 | P132: 0.06246811945 | Q132: 0.06497033086 | R132: 107.240657
H133: 0.09 | I133: 0.08 | J133: 0.01 | K133: 0.04 | L133: 19.1175054 | N133: 0.1409254346 | O133: 0.08 | P133: 0.06092543457 | Q133: 0.006304432062 | R133: 66.68006927
H134: 0.07 | I134: 0.08 | J134: -0.01 | K134: 0.04 | L134: 18.74986107 | N134: 0.1003468556 | O134: 0.08 | P134: 0.02034685559 | Q134: 0.005377751049 | R134: 48.74125337
H135: 0.05 | I135: 0.08 | J135: -0.03 | K135: 0.04 | L135: 18.33319749 | N135: 0.02570953567 | O135: 0.08 | P135: -0.05429046433 | Q135: 0.06256398544 | R135: 14.18356757
H136: 0.03 | I136: 0.08 | J136: -0.05 | K136: 0.04 | L136: 17.85701054 | N136: 0.01382478199 | O136: 0.08 | P136: -0.06617521801 | Q136: 0.03760461339 | R136: 8.108801156
H137: 0.01 | I137: 0.08 | J137: -0.07 | K137: 0.04 | L137: 17.30756406 | N137: 0.01200095239 | O137: 0.08 | P137: -0.06799904761 | Q137: 0.06284835368 | R137: 3.480949868
H138: -0.01 | I138: 0.08 | J138: -0.09 | K138: 0.04 | L138: 16.66654317 | N138: -0.004585585386 | O138: 0.08 | P138: -0.08458558539 | Q138: 0.04958910322 | R138: -5.803259491
H139: -0.03 | I139: 0.08 | J139: -0.11 | K139: 0.04 | L139: 15.90897303 | N139: -0.03242302839 | O139: 0.08 | P139: -0.1124230284 | Q139: 0.0451619667 | R139: -22.68463462
H140: -0.05 | I140: 0.08 | J140: -0.13 | K140: 0.04 | L140: 14.99988885 | N140: -0.01321439455 | O140: 0.08 | P140: -0.09321439455 | Q140: 0.02135485476 | R140: -3.822575827
H141: -0.07 | I141: 0.08 | J141: -0.15 | K141: 0.04 | L141: 13.88878598 | N141: -0.09400205111 | O141: 0.08 | P141: -0.1740020511 | Q141: 0.04910142633 | R141: -65.93045045
H142: -0.09 | I142: 0.08 | J142: -0.17 | K142: 0.04 | L142: 12.49990738 | N142: -0.07369060256 | O142: 0.08 | P142: -0.1536906026 | Q142: 0.01996150644 | R142: -33.66879543
H143: -0.11 | I143: 0.08 | J143: -0.19 | K143: 0.04 | L143: 10.71420632 | N143: -0.1711050857 | O143: 0.08 | P143: -0.2511050857 | Q143: 0.03681577706 | R143: -101.4038431
H144: -0.13 | I144: 0.08 | J144: -0.21 | K144: 0.04 | L144: 8.333271586 | N144: -0.1874494806 | O144: 0.08 | P144: -0.2674494806 | Q144: 0.007064160448 | R144: -77.13130009
H145: -0.15 | I145: 0.08 | J145: -0.23 | K145: 0.04 | L145: 4.999962952 | N145: -0.1427403376 | O145: 0.08 | P145: -0.2227403376 | Q145: 0.05049870776 | R145: -100.5153336
H146: -0.17 | I146: 0.08 | J146: -0.25 | K146: 0.04 | L146: 0 | N146: -0.1998388496 | O146: 0.08 | P146: -0.2798388496 | Q146: 0.02229945676 | R146: -99.39358343
H147: -0.19 | I147: 0.08 | J147: -0.27 | K147: 0.04 | L147: -8.333271586 | N147: -0.1415052929 | O147: 0.08 | P147: -0.2215052929 | Q147: 0.05864615049 | R147: -110.3337139
H148: -0.21 | I148: 0.08 | J148: -0.29 | K148: 0.04 | L148: -24.99981476 | N148: -0.1530142704 | O148: 0.08 | P148: -0.2330142704 | Q148: 0.02319808441 | R148: -76.34118467
H149: 0.25 | I149: 0.08 | J149: 0.17 | K149: 0.04 | L149: 41.89186939 | N149: 0.3316391208 | O149: 0.08 | P149: 0.2516391208 | Q149: 0.03395576848 | R149: 191.398703
H150: 0.24 | I150: 0.08 | J150: 0.16 | K150: 0.04 | L150: 41.55939423 | N150: 0.2835758688 | O150: 0.08 | P150: 0.2035758688 | Q150: 0.05175815468 | R150: 193.3302226
H151: 0.23 | I151: 0.08 | J151: 0.15 | K151: 0.04 | L151: 41.1980082 | N151: 0.1626222855 | O151: 0.08 | P151: 0.08262228551 | Q151: 0.03888799057 | R151: 98.0643394
H152: 0.22 | I152: 0.08 | J152: 0.14 | K152: 0.04 | L152: 40.80376888 | N152: 0.1221383289 | O152: 0.08 | P152: 0.04213832891 | Q152: 0.0306010137 | R152: 69.10469039
H153: 0.21 | I153: 0.08 | J153: 0.13 | K153: 0.04 | L153: 40.37198297 | N153: 0.1904840044 | O153: 0.08 | P153: 0.1104840044 | Q153: 0.00693801103 | R153: 88.69687412
H154: 0.2 | I154: 0.08 | J154: 0.12 | K154: 0.04 | L154: 39.89701846 | N154: 0.08848408804 | O154: 0.08 | P154: 0.008484088042 | Q154: 0.02506304544 | R154: 48.70495457
H155: 0.19 | I155: 0.08 | J155: 0.11 | K155: 0.04 | L155: 39.3720577 | N155: 0.2439737864 | O155: 0.08 | P155: 0.1639737864 | Q155: 0.04556803686 | R155: 156.5943247
H156: 0.18 | I156: 0.08 | J156: 0.1 | K156: 0.04 | L156: 38.78876795 | N156: 0.06637472503 | O156: 0.08 | P156: -0.01362527497 | Q156: 0.05846101345 | R156: 44.61182547
H157: 0.17 | I157: 0.08 | J157: 0.09 | K157: 0.04 | L157: 38.13685588 | N157: 0.258472694 | O157: 0.08 | P157: 0.178472694 | Q157: 0.05174792325 | R157: 175.9164777
H158: 0.16 | I158: 0.08 | J158: 0.08 | K158: 0.04 | L158: 37.40345481 | N158: 0.0710420737 | O158: 0.08 | P158: -0.008957926302 | Q158: 0.03839780664 | R158: 42.48925277
H159: 0.15 | I159: 0.08 | J159: 0.07 | K159: 0.04 | L159: 36.57226693 | N159: 0.1864501786 | O159: 0.08 | P159: 0.1064501786 | Q159: 0.05095003003 | R159: 125.1071271
H160: 0.14 | I160: 0.08 | J160: 0.06 | K160: 0.04 | L160: 35.62233791 | N160: 0.1189633434 | O160: 0.08 | P160: 0.03896334344 | Q160: 0.05714102155 | R160: 82.83003515
H161: 0.13 | I161: 0.08 | J161: 0.05 | K161: 0.04 | L161: 34.52626598 | N161: 0.0475916124 | O161: 0.08 | P161: -0.0324083876 | Q161: 0.0763180485 | R161: 33.36786463
H162: 0.12 | I162: 0.08 | J162: 0.04 | K162: 0.04 | L162: 33.24751539 | N162: 0.1428715574 | O162: 0.08 | P162: 0.06287155742 | Q162: 0.0195363472 | R162: 74.16121787
H163: 0.11 | I163: 0.08 | J163: 0.03 | K163: 0.04 | L163: 31.73626469 | N163: 0.1721604156 | O163: 0.08 | P163: 0.09216041556 | Q163: 0.06854073249 | R163: 135.3643371
H164: 0.1 | I164: 0.08 | J164: 0.02 | K164: 0.04 | L164: 29.92276385 | N164: 0.1417941761 | O164: 0.08 | P164: 0.06179417611 | Q164: 0.06245760988 | R164: 104.3415839
H165: 0.09 | I165: 0.08 | J165: 0.01 | K165: 0.04 | L165: 27.70626282 | N165: 0.1173023796 | O165: 0.08 | P165: 0.03730237959 | Q165: 0.03406604134 | R165: 68.12026798
H166: 0.08 | I166: 0.08 | J166: 0 | K166: 0.04 | L166: 24.93563654 | N166: 0.07498075801 | O166: 0.08 | P166: -0.005019241994 | Q166: 0.07317630892 | R166: 56.70610745
H167: 0.07 | I167: 0.08 | J167: -0.01 | K167: 0.04 | L167: 21.37340275 | N167: 0.07794456564 | O167: 0.08 | P167: -0.002055434361 | Q167: 0.02770610789 | R167: 43.80799569
H168: 0.06 | I168: 0.08 | J168: -0.02 | K168: 0.04 | L168: 16.62375769 | N168: 0.06034899132 | O168: 0.08 | P168: -0.01965100868 | Q168: 0.03419935558 | R168: 35.33279722
H169: 0.05 | I169: 0.08 | J169: -0.03 | K169: 0.04 | L169: 9.974254616 | N169: -0.007069684955 | O169: 0.08 | P169: -0.08706968496 | Q169: 0.06056259134 | R169: -10.68068877
H170: 0.04 | I170: 0.08 | J170: -0.04 | K170: 0.04 | L170: 0 | N170: 0.03794431606 | O170: 0.08 | P170: -0.04205568394 | Q170: 0.008315261736 | R170: 21.83346292
H171: 0.03 | I171: 0.08 | J171: -0.05 | K171: 0.04 | L171: -16.62375769 | N171: 0.04260712552 | O171: 0.08 | P171: -0.03739287448 | Q171: 0.02560465508 | R171: 24.62874952
H172: 0.02 | I172: 0.08 | J172: -0.06 | K172: 0.04 | L172: -49.87127308 | N172: 0.007120508322 | O172: 0.08 | P172: -0.07287949168 | Q172: 0.0592859722 | R172: 0.3622703052
H173: 0.25 | I173: 0.08 | J173: 0.17 | K173: 0.04 | L173: 79.79792424 | N173: 0.3973375976 | O173: 0.08 | P173: 0.3173375976 | Q173: 0.03580598165 | R173: 233.2495831
H174: 0.24 | I174: 0.08 | J174: 0.16 | K174: 0.04 | L174: 79.16460739 | N174: 0.1720675993 | O174: 0.08 | P174: 0.09206759934 | Q174: 0.01812155595 | R174: 87.69938486
H175: 0.23 | I175: 0.08 | J175: 0.15 | K175: 0.04 | L175: 78.47621949 | N175: 0.04636239727 | O175: 0.08 | P175: -0.03363760273 | Q175: 0.02200109182 | R175: 26.36788519
H176: 0.22 | I176: 0.08 | J176: 0.14 | K176: 0.04 | L176: 77.72525089 | N176: 0.172711223 | O176: 0.08 | P176: 0.09271122299 | Q176: 0.05600893226 | R176: 121.0224032
H177: 0.21 | I177: 0.08 | J177: 0.13 | K177: 0.04 | L177: 76.90276146 | N177: 0.2063325768 | O177: 0.08 | P177: 0.1263325768 | Q177: 0.01700089558 | R177: 103.5422071
H178: 0.2 | I178: 0.08 | J178: 0.12 | K178: 0.04 | L178: 75.99802309 | N178: 0.2457462548 | O178: 0.08 | P178: 0.1657462548 | Q178: 0.04968986847 | R178: 163.9044668
H179: 0.19 | I179: 0.08 | J179: 0.11 | K179: 0.04 | L179: 74.9980491 | N179: 0.1284879685 | O179: 0.08 | P179: 0.04848796852 | Q179: 0.01907092447 | R179: 66.79515757
H180: 0.18 | I180: 0.08 | J180: 0.1 | K180: 0.04 | L180: 73.88696689 | N180: 0.2827764282 | O180: 0.08 | P180: 0.2027764282 | Q180: 0.04474330232 | R180: 180.3851803
H181: 0.17 | I181: 0.08 | J181: 0.09 | K181: 0.04 | L181: 72.64516913 | N181: 0.2816807563 | O181: 0.08 | P181: 0.2016807563 | Q181: 0.02013767822 | R181: 143.8771499
H182: 0.16 | I182: 0.08 | J182: 0.08 | K182: 0.04 | L182: 71.24814665 | N182: 0.2657422703 | O182: =I182 -> 0.08 | P182: =N182-O182 -> 0.1857422703 | Q182: 0.02692301139 | R182: 144.1659699
H183: 0.15 | I183: 0.08 | J183: 0.07 | K183: 0.04 | L183: 69.6648545 | N183: 0.1100512705 | O183: 0.08 | P183: 0.03005127053 | Q183: 0.05850155768 | R183: 77.13880965
H184: 0.14 | I184: 0.08 | J184: 0.06 | K184: 0.04 | L184: 67.85537776 | N184: 0.1525466804 | O184: 0.08 | P184: 0.07254668035 | Q184: 0.04726652878 | R184: 98.64520502
H185: 0.13 | I185: 0.08 | J185: 0.05 | K185: 0.04 | L185: 65.76751998 | N185: 0.2020267246 | O185: 0.08 | P185: 0.1220267246 | Q185: 0.05355406229 | R185: 139.0876603
H186: 0.12 | I186: 0.08 | J186: 0.04 | K186: 0.04 | L186: 63.33168591 | N186: 0.1441914412 | O186: 0.08 | P186: 0.06419144115 | Q186: 0.05727851658 | R186: 101.4628168
H187: 0.11 | I187: 0.08 | J187: 0.03 | K187: 0.04 | L187: 60.45297291 | N187: 0.06926991421 | O187: 0.08 | P187: -0.01073008579 | Q187: 0.02239378662 | R187: 38.10809814
H188: 0.1 | I188: 0.08 | J188: 0.02 | K188: 0.04 | L188: 56.99851732 | N188: 0.1207885999 | O188: 0.08 | P188: 0.04078859987 | Q188: 0.03101436979 | R188: 68.56189384
H189: 0.09 | I189: 0.08 | J189: 0.01 | K189: 0.04 | L189: 52.77640492 | N189: 0.1060573019 | O189: 0.08 | P189: 0.02605730188 | Q189: 0.01194783206 | R189: 53.2631398
H190: 0.08 | I190: 0.08 | J190: =H190-I190 -> 0 | K190: 0.04 | L190: 47.49876443 | N190: 0.08364188833 | O190: 0.08 | P190: 0.003641888326 | Q190: 0.04566491765 | R190: 52.52992867
H191: 0.07 | I191: 0.08 | J191: -0.01 | K191: 0.04 | L191: 40.71322666 | N191: 0.0852171388 | O191: 0.08 | P191: 0.005217138804 | Q191: 0.0223768865 | R191: 46.25859184
H192: 0.06 | I192: 0.08 | J192: -0.02 | K192: 0.04 | L192: 31.66584295 | N192: 0.05231137074 | O192: 0.08 | P192: -0.02768862926 | Q192: 0.07968206822 | R192: 38.38789921
H193: 0.05 | I193: 0.08 | J193: -0.03 | K193: 0.04 | L193: 18.99950577 | N193: 0.06545311768 | O193: 0.08 | P193: -0.01454688232 | Q193: 0.02324260764 | R193: 36.29703669
H194: 0.04 | I194: 0.08 | J194: -0.04 | K194: 0.04 | L194: 0 | N194: 0.02368104431 | O194: 0.08 | P194: -0.05631895569 | Q194: 0.03965673113 | R194: 13.88762713
H195: 0.03 | I195: 0.08 | J195: -0.05 | K195: 0.04 | L195: -31.66584295 | N195: 0.02507597931 | O195: 0.08 | P195: -0.05492402069 | Q195: 0.04146813236 | R195: 14.65704789
H196: 0.02 | I196: 0.08 | J196: -0.06 | K196: 0.04 | L196: -94.99752886 | N196: 0.019976049 | O196: 0.08 | P196: -0.060023951 | Q196: 0.004558542656 | R196: 14.08766176
H197: 0.25 | I197: 0.08 | J197: =H197-I197 -> 0.17 | K197: 0.05 | L197: 26.66271679 | N197: 0.4883990362 | O197: 0.08 | P197: 0.4083990362 | Q197: 0.06866410062 | R197: 398.064616
H198: 0.24 | I198: 0.08 | J198: =H198-I198 -> 0.16 | K198: 0.05 | L198: 26.38498015 | N198: 0.2197216207 | O198: 0.08 | P198: 0.1397216207 | Q198: 0.06227450996 | R198: 164.5738148
H199: 0.23 | I199: 0.08 | J199: 0.15 | K199: 0.05 | L199: 26.08309251 | N199: 0.06625089949 | O199: 0.08 | P199: -0.01374910051 | Q199: 0.07041616758 | R199: 48.16653814
H200: 0.22 | I200: 0.08 | J200: 0.14 | K200: 0.05 | L200: 25.75376053 | N200: 0.1504305128 | O200: 0.08 | P200: 0.07043051282 | Q200: 0.06034500927 | R200: 108.9697645
H201: 0.21 | I201: 0.08 | J201: 0.13 | K201: 0.05 | L201: 25.39306361 | N201: 0.2753895418 | O201: 0.08 | P201: 0.1953895418 | Q201: 0.04330762248 | R201: 173.2931702
H202: 0.2 | I202: 0.08 | J202: 0.12 | K202: 0.05 | L202: 24.99629699 | N202: 0.2727494155 | O202: 0.08 | P202: 0.1927494155 | Q202: 0.03954504043 | R202: 165.7489832
H203: 0.19 | I203: 0.08 | J203: 0.11 | K203: 0.05 | L203: 24.55776546 | N203: 0.2631717648 | O203: 0.08 | P203: 0.1831717648 | Q203: 0.03602741389 | R203: 154.8694633
H204: 0.18 | I204: 0.08 | J204: 0.1 | K204: 0.05 | L204: 24.07050821 | N204: 0.18858459 | O204: 0.08 | P204: 0.10858459 | Q204: 0.06659373038 | R204: 146.2570158
H205: 0.17 | I205: 0.08 | J205: 0.09 | K205: 0.05 | L205: 23.52592658 | N205: 0.2645448238 | O205: 0.08 | P205: 0.1845448238 | Q205: 0.06442007887 | R205: 203.5380506
H206: 0.16 | I206: 0.08 | J206: 0.08 | K206: 0.05 | L206: 22.91327224 | N206: 0.1595939589 | O206: 0.08 | P206: 0.07959395887 | Q206: 0.03453845451 | R206: 92.84060461
H207: 0.15 | I207: 0.08 | J207: 0.07 | K207: 0.05 | L207: 22.21893066 | N207: 0.1674430332 | O207: 0.08 | P207: 0.08744303324 | Q207: 0.09082902767 | R207: 162.8966957
H208: 0.14 | I208: 0.08 | J208: 0.06 | K208: 0.05 | L208: 21.42539742 | N208: 0.1498612649 | O208: 0.08 | P208: 0.06986126491 | Q208: 0.03162513164 | R208: 85.20332157
H209: 0.13 | I209: 0.08 | J209: 0.05 | K209: 0.05 | L209: 20.50978214 | N209: 0.1356620873 | O209: 0.08 | P209: 0.05566208727 | Q209: 0.07937068577 | R209: 116.0326423
H210: 0.12 | I210: 0.08 | J210: 0.04 | K210: 0.05 | L210: 19.44156432 | N210: 0.09459588303 | O210: 0.08 | P210: 0.01459588303 | Q210: 0.04558489361 | R210: 59.6149966
H211: 0.11 | I211: 0.08 | J211: 0.03 | K211: 0.05 | L211: 18.17912508 | N211: 0.1722855003 | O211: 0.08 | P211: 0.09228550028 | Q211: 0.06049127544 | R211: 125.7315364
... 345 more rows
